fUST/lending_fUST_20260124
["ID","MTS","AMOUNT","RATE_DAILY","PERIOD"]
[403198094,1769265651238,1194.6,9.63e-05,2]
[403198095,1769265651431,-500.0,0.00010724,2]
[403198096,1769265651488,-500.0,0.00010724,2]
[403198097,1769265651543,-500.0,0.00010724,2]
[403198098,1769265651599,-500.0,0.00010724,2]
[403198099,1769265651655,-509.97282657,0.00010724,2]
[403198100,1769265651713,-500.0,0.00010724,2]
[403198101,1769265651768,-500.0,0.00010724,2]
[403198102,1769265651819,-500.0,0.00010724,2]
[403198103,1769265651872,-500.0,0.00010724,2]
[403198104,1769265651925,-480.06434686,0.00010724,2]
[403198105,1769265652259,-19.93565314,0.00010724,2]
[403198106,1769265652311,-330.07939802,0.00010724,2]
[403198107,1769265652369,-500.0,0.00010724,2]
[403198108,1769265652425,-500.0,0.00010724,2]
[403198109,1769265652478,-500.0,0.00010724,2]
[403198110,1769265652533,-509.97282654,0.00010724,2]
[403198111,1769265652589,-509.97282654,0.00010724,2]
[403198112,1769265652647,-509.97282654,0.00010724,2]
[403198113,1769265652702,-509.97282654,0.00010724,2]
[403198114,1769265652760,-509.97282654,0.00010724,2]
[403198115,1769265652815,-509.97282654,0.00010724,2]
[403198116,1769265653043,-509.97282654,0.00010724,2]
[403198117,1769265653114,-509.97282654,0.00010724,2]
[403198118,1769265653180,-509.97282654,0.00010724,2]
[403198119,1769265653249,-500.0,0.00010724,2]
[403198120,1769265653315,-500.0,0.00010724,2]
[403198121,1769265653383,-500.0,0.00010724,2]
[403198122,1769265653455,-500.0,0.00010724,2]
[403198123,1769265653516,-500.0,0.00010724,2]
[403198124,1769265653585,-500.0,0.00010724,2]
[403198125,1769265653655,-440.17304076,0.00010724,2]
[403198126,1769265653739,-59.82695924,0.00010724,2]
[403198127,1769265653803,-500.0,0.00010724,2]
[403198128,1769265653866,-500.0,0.00010724,2]
[403198129,1769265653935,-500.0,0.00010724,2]
[403198130,1769265654001,-500.0,0.00010724,2]
[403198131,1769265654067,-500.0,0.00010724,2]
[403198132,1769265654135,-500.0,0.00010724,2]
[403198133,1769265654199,-500.0,0.00010724,2]
[403198134,1769265654261,-500.0,0.00010724,2]
[403198135,1769265654324,-500.0,0.00010724,2]
[403198136,1769265654389,-248.70738807,0.00010724,2]
[403198137,1769265654619,-382.94130538,0.00010724,2]
[403198138,1769265654680,-500.0,0.00010724,2]
[403198139,1769265654741,-500.0,0.00010724,2]
[403198140,1769265654801,-500.0,0.00010724,2]
[403198141,1769265654859,-500.0,0.00010724,2]
[403198142,1769265654944,1791.9,0.00010433,2]
[403198143,1769265660503,3442.22738924,0.00010728,2]
[403198144,1769265660551,1557.77261076,0.00010728,2]
[403198146,1769265663287,8442.23738924,0.00010037,2]
[403198147,1769265663333,1557.76261076,0.00010037,2]
[403198148,1769265668989,5000.0,0.00010728,2]
[403198149,1769265669073,-176.0,0.00010853,2]
[403198150,1769265680952,-3002.68793246,0.00010854,2]
[403198151,1769265691821,3994.63413508,0.00010854,2]
[403198152,1769265691874,1005.36586492,0.00010854,2]
[403198155,1769265696185,-300.0,0.00010917,2]
[403198156,1769265696239,-420.0,0.00010917,2]
[403198157,1769265696301,-300.0,0.00010917,2]
[403198158,1769265696352,-1680.0,0.00010917,2]
[403198159,1769265699493,190.53102582,0.00010723,2]
[403198160,1769265701850,162.0,0.00010222,2]
[403198161,1769265701911,500.0,0.00010222,2]
[403198162,1769265701966,500.0,0.00010222,2]
[403198163,1769265702018,500.0,0.00010222,2]
[403198164,1769265702073,500.0,0.00010222,2]
[403198165,1769265702124,500.0,0.00010222,2]
[403198166,1769265702176,610.47635991,0.00010222,2]
[403198167,1769265702229,500.0,0.00010222,2]
[403198168,1769265702278,500.0,0.00010222,2]
[403198169,1769265702331,137.00261427,0.00010222,2]
[403198170,1769265702375,362.99738573,0.00010222,2]
[403198171,1769265702430,500.0,0.00010222,2]
[403198172,1769265702488,500.0,0.00010222,2]
[403198173,1769265702539,500.0,0.00010222,2]
[403198174,1769265702590,500.0,0.00010222,2]
[403198175,1769265702647,500.0,0.00010222,2]
[403198176,1769265702706,500.0,0.00010222,2]
[403198177,1769265702757,500.0,0.00010222,2]
[403198178,1769265702806,500.0,0.00010222,2]
[403198179,1769265702855,500.0,0.00010222,2]
[403198180,1769265702905,500.0,0.00010222,2]
[403198181,1769265702967,152.14286185,0.00010222,2]
[403198182,1769265703022,500.0,0.00010222,2]
[403198183,1769265703070,607.77042603,0.00010222,2]
[403198184,1769265703124,500.0,0.00010222,2]
[403198185,1769265703365,500.0,0.00010222,2]
[403198186,1769265703421,500.0,0.00010222,2]
[403198187,1769265703472,500.0,0.00010222,2]
[403198188,1769265703540,500.0,0.00010222,2]
[403198189,1769265703597,500.0,0.00010222,2]
[403198190,1769265703649,274.89680608,0.00010222,2]
[403198191,1769265703703,102.20252031,0.00010222,2]
[403198192,1769265703747,397.79747969,0.00010222,2]
[403198193,1769265704071,500.0,0.00010222,2]
[403198194,1769265714695,5000.0,0.00010917,2]
[403198195,1769265714752,-300.0,0.00010937,2]
[403198196,1769265714802,-300.0,0.00010937,2]
[403198197,1769265714855,-300.0,0.00010937,2]
[403198198,1769265714908,-300.0,0.00010937,2]
[403198199,1769265714963,-300.0,0.00010937,2]
[403198200,1769265715017,-300.0,0.00010937,2]
[403198201,1769265715079,-300.0,0.00010937,2]
[403198202,1769265715136,-300.0,0.00010937,2]
[403198203,1769265715191,-300.0,0.00010937,2]
[403198204,1769265715249,-300.0,0.00010937,2]
[403198205,1769265715299,-300.0,0.00010937,2]
[403198206,1769265715348,-300.0,0.00010937,2]
[403198207,1769265715398,-300.0,0.00010937,2]
[403198208,1769265715451,-300.0,0.00010937,2]
[403198209,1769265715505,-300.0,0.00010937,2]
[403198210,1769265715555,-400.01,0.00010937,2]
[403198211,1769265715854,-199.99,0.00010937,2]
[403198212,1769265719087,551.69,8.837e-05,2]
[403198213,1769265719519,1103.37,9.641e-05,2]
[403198214,1769265719946,1655.06,0.00010444,2]
[403198216,1769265730109,-186.64518036,0.00010959,2]
[403198218,1769265737828,5000.0,0.00010959,2]
[403198219,1769265745377,-371.83575697,0.00011061,2]
[403198220,1769265760851,-3002.68793246,0.00011084,2]
[403198221,1769265761142,3994.63413508,0.00011061,2]
[403198222,1769265761188,1005.36586492,0.00011061,2]
[403198224,1769265776230,-610.9405366,0.000111,2]
[403198225,1769265776280,-598.2606028,0.000111,2]
[403198228,1769265783367,5000.0,0.000111,2]
[403198231,1769265791645,-300.0,0.00011188,2]
[403198232,1769265798363,509.56,8.845e-05,2]
[403198233,1769265798797,1019.12,9.65e-05,2]
[403198234,1769265799222,1528.67,0.00010454,2]
[403198237,1769265805780,5000.0,0.00011188,2]
[403198238,1769265807617,-1957.856,0.00011189,2]
[403198239,1769265807689,-2487.15318209,0.00011189,2]
[403198240,1769265807762,-151.0,0.00011189,2]
[403198241,1769265807838,-156.587,0.00011189,2]
[403198242,1769265807907,-152.90381738,0.00011189,2]
[403198243,1769265822952,-333.36494678,0.00011217,2]
[403198244,1769265829841,5000.0,0.00011217,2]
[403198246,1769265842410,-2030.296672,0.00011244,2]
[403198247,1769265842553,300.0,0.00011243,2]
[403198249,1769265846428,179.50812141,0.00010977,2]
[403198250,1769265852177,5000.0,0.00011244,2]
[403198251,1769265875690,459.90853459,0.00011244,2]
[403198252,1769265875736,4540.09146541,0.00011244,2]
[403198253,1769265879727,470.65,8.837e-05,2]
[403198254,1769265880148,941.29,9.64e-05,2]
[403198255,1769265880558,1411.94,0.00010444,2]
[403198261,1769265904350,-366.00836389,0.00010472,2]
[403198263,1769265906657,-330.11884064,0.00010472,2]
[403198267,1769265909042,-279.52155573,0.00010431,2]
[403198268,1769265912169,-182.37350716,0.00010431,2]
[403198269,1769265915243,-482.25858456,0.00010431,2]
[403198276,1769265961400,434.71,8.873e-05,2]
[403198277,1769265961814,869.41,9.679e-05,2]
[403198284,1769266049662,418.11,8.839e-05,2]
[403198285,1769266050149,836.22,9.642e-05,2]
[403198291,1769266130095,402.14,9.201e-05,2]
[403198292,1769266130500,804.29,0.00010037,2]
[403198309,1769266209436,386.79,8.779e-05,2]
[403198310,1769266209867,773.58,9.577e-05,2]
[403198320,1769266231904,-1200.0,0.00010325,2]
[403198321,1769266231914,-393.96474608,0.00010326,2]
[403198327,1769266237898,-4606.03525392,0.00010326,2]
[403198328,1769266237908,-565.0,0.00010326,2]
[403198329,1769266237917,-1160.37,0.00010375,2]
[403198330,1769266237927,-290.05292888,0.0001043,2]
[403198331,1769266237936,-516.90476243,0.0001043,2]
[403198332,1769266237946,-289.75226956,0.0001043,2]
[403198333,1769266237955,-586.09964512,0.0001043,2]
[403198334,1769266237965,-300.0,0.0001043,2]
[403198335,1769266237977,-300.0,0.0001043,2]
[403198336,1769266237987,-10902.75763755,0.00010431,2]
[403198338,1769266237996,-326.69764784,0.00010438,2]
[403198339,1769266238005,-702.92768937,0.00010472,2]
[403198340,1769266238015,-240.14770577,0.00010637,2]
[403198341,1769266238025,-300.0,0.00010638,2]
[403198342,1769266238035,-300.0,0.00010638,2]
[403198343,1769266238045,-300.0,0.00010638,2]
[403198344,1769266238055,-300.0,0.00010638,2]
[403198345,1769266238064,-300.0,0.00010638,2]
[403198346,1769266238073,-300.0,0.00010638,2]
[403198347,1769266238083,-300.0,0.00010638,2]
[403198348,1769266238092,-300.0,0.00010638,2]
[403198349,1769266238102,-300.0,0.00010638,2]
[403198350,1769266238111,-300.0,0.00010638,2]
[403198351,1769266238121,-300.0,0.00010638,2]
[403198353,1769266238131,-300.0,0.00010638,2]
[403198355,1769266238144,-300.0,0.00010638,2]
[403198356,1769266238154,-300.0,0.00010638,2]
[403198357,1769266238164,-300.0,0.00010638,2]
[403198358,1769266238173,-18676.57451642,0.00010638,2]
[403198359,1769266238196,-314.4785267,0.00010638,2]
[403198360,1769266238207,-31008.94695688,0.00010638,2]
[403198361,1769266238217,-175.21740411,0.00010755,2]
[403198362,1769266238226,-700.16874682,0.00010755,2]
[403198363,1769266238235,-392.03312847,0.00010755,2]
[403198364,1769266238245,-1566.56438137,0.00010755,2]
[403198365,1769266238254,-600.0,0.0001085,2]
[403198366,1769266238264,-6005.37586492,0.000111,2]
[403198367,1769266238274,-1957.856,0.00011125,2]
[403198368,1769266238283,-2487.15318209,0.00011125,2]
[403198369,1769266238293,-1000000.0,0.00011144,2]
[403198370,1769266238303,-1547.16,0.00011173,2]
[403198371,1769266238313,-1900.67653543,0.0001118,2]
[403198372,1769266238326,-610.7135838,0.000112,2]
[403198373,1769266238335,-641.3023736,0.0001126,2]
[403198374,1769266238344,-1001.97160587,0.00011298,2]
[403198375,1769266238354,-1004.0719827,0.00011298,2]
[403198376,1769266238363,-389.375,0.00011299,2]
[403198377,1769266238373,-1680.0,0.00011358,2]
[403198378,1769266238384,-300.0,0.00011468,2]
[403198379,1769266238402,-420.0,0.00011468,2]
[403198380,1769266238413,-1004.07,0.00011519,2]
[403198381,1769266238423,-256.19,0.00011519,2]
[403198382,1769266238432,-151.0,0.000116,2]
[403198383,1769266238441,-151.0,0.000116,2]
[403198384,1769266238450,-151.0,0.000116,2]
[403198385,1769266238459,-151.0,0.000116,2]
[403198386,1769266238468,-151.0,0.000116,2]
[403198387,1769266238478,-151.0,0.000116,2]
[403198388,1769266238487,-151.0,0.000116,2]
[403198389,1769266238496,-151.0,0.00011613,2]
[403198390,1769266238506,-151.0,0.00011613,2]
[403198391,1769266238515,-151.0,0.00011613,2]
[403198392,1769266238524,-151.0,0.00011613,2]
[403198393,1769266238534,-500.0,0.00011613,2]
[403198394,1769266238543,-500.0,0.00011613,2]
[403198395,1769266238553,-500.0,0.00011613,2]
[403198396,1769266238563,-349.23401035,0.00011613,2]
[403198397,1769266238574,-250.0,0.00011613,2]
[403198398,1769266238584,-250.0,0.00011613,2]
[403198399,1769266238593,-250.0,0.00011613,2]
[403198400,1769266238602,-250.0,0.00011613,2]
[403198401,1769266238611,-250.0,0.00011613,2]
[403198402,1769266238621,-187.78006525,0.00011613,2]
[403198403,1769266238630,-250.0,0.00011613,2]
[403198404,1769266238640,-194.72792766,0.00011613,2]
[403198405,1769266238649,-151.0,0.00011613,2]
[403198406,1769266238659,-250.0,0.00011613,2]
[403198407,1769266238667,-201.93286099,0.00011613,2]
[403198408,1769266238676,-254.04553711,0.00011613,2]
[403198409,1769266238686,-209.40437684,0.00011613,2]
[403198410,1769266238695,-217.15233878,0.00011613,2]
[403198411,1769266238705,-225.18697532,0.00011613,2]
[403198412,1769266238715,-233.51889341,0.00011613,2]
[403198413,1769266238724,-242.15909246,0.00011613,2]
[403198414,1769266238733,-514.84070869,0.00011613,2]
[403198415,1769266238742,-251.11897888,0.00011613,2]
[403198416,1769266238751,-151.0,0.00011613,2]
[403198417,1769266238760,-152.99083282,0.00011613,2]
[403198418,1769266238770,-244.37834183,0.00011613,2]
[403198419,1769266238779,-557.5788265,0.00011613,2]
[403198420,1769266238788,-500.0,0.00011613,2]
[403198421,1769266238798,-207.83714257,0.0001162,2]
[403198422,1769266238807,-500.0,0.00011643,2]
[403198423,1769266238819,-500.0,0.00011643,2]
[403198424,1769266238828,-500.0,0.00011643,2]
[403198425,1769266238837,-500.0,0.00011643,2]
[403198426,1769266238846,-500.0,0.00011643,2]
[403198427,1769266238856,-150.0,0.00011643,2]
[403198428,1769266238865,-500.0,0.00011643,2]
[403198429,1769266238875,-252.02297164,0.00011643,2]
[403198430,1769266238884,-500.0,0.00011643,2]
[403198431,1769266238894,-500.0,0.00011643,2]
[403198432,1769266239154,-500.0,0.00011643,2]
[403198433,1769266239172,-500.0,0.00011643,2]
[403198434,1769266239189,-500.0,0.00011643,2]
[403198435,1769266239199,-150.0,0.00011643,2]
[403198436,1769266239209,-253.17343196,0.00011643,2]
[403198437,1769266239219,-500.0,0.00011643,2]
[403198438,1769266239228,-150.0,0.00011643,2]
[403198439,1769266239239,-201.03981442,0.00011643,2]
[403198440,1769266239248,-500.0,0.00011643,2]
[403198441,1769266239258,-500.0,0.00011643,2]
[403198442,1769266239271,-150.0,0.00011643,2]
[403198443,1769266239280,-500.0,0.00011643,2]
[403198444,1769266239291,-193.882904,0.00011643,2]
[403198445,1769266239301,-500.0,0.00011643,2]
[403198446,1769266239311,-500.0,0.00011643,2]
[403198447,1769266239320,-3533.8060123,0.00011644,2]
[403198448,1769266239329,-2579.17784983,0.00011673,2]
[403198449,1769266239339,-200.0,0.00011726,2]
[403198450,1769266239348,-150.0,0.00011726,2]
[403198451,1769266239358,-500.0,0.00011726,2]
[403198452,1769266239367,-500.0,0.00011726,2]
[403198453,1769266239376,-150.0,0.00011726,2]
[403198454,1769266239386,-500.0,0.0001178,2]
[403198455,1769266239395,-150.0,0.0001178,2]
[403198456,1769266239407,-500.0,0.0001178,2]
[403198457,1769266239416,-150.0,0.0001178,2]
[403198458,1769266239424,-202.09687579,0.0001178,2]
[403198459,1769266239434,-500.0,0.0001178,2]
[403198460,1769266239444,-500.0,0.0001178,2]
[403198461,1769266239454,-252.58455363,0.0001178,2]
[403198462,1769266239464,-500.0,0.0001178,2]
[403198463,1769266239474,-500.0,0.0001178,2]
[403198464,1769266239483,-500.0,0.0001178,2]
[403198465,1769266239492,-153.0,0.00011781,2]
[403198466,1769266239501,-160.0,0.00011785,2]
[403198467,1769266239511,-213.74583476,0.00011785,2]
[403198468,1769266239519,-160.0,0.0001181,2]
[403198469,1769266239529,-197.34508648,0.0001181,2]
[403198470,1769266239538,-177.34508648,0.0001181,2]
[403198471,1769266239547,-180.0,0.0001181,2]
[403198472,1769266239556,-517.43995492,0.0001182,2]
[403198473,1769266239565,-2069.7598197,0.0001182,2]
[403198474,1769266239575,-4652.30263473,0.0001182,2]
[403198475,1769266239585,-557.92378085,0.0001182,2]
[403198476,1769266239594,-4981.19662321,0.00011838,2]
[403198477,1769266239603,-250.0,0.00011863,2]
[403198478,1769266239613,-150.0,0.00011863,2]
[403198479,1769266239622,-500.0,0.00011863,2]
[403198480,1769266239631,-500.0,0.00011863,2]
[403198481,1769266239639,-150.0,0.00011863,2]
[403198482,1769266239648,-500.0,0.00011887,2]
[403198484,1769266239657,-875.3308798,0.00011913,2]
[403198486,1769266239667,-3497.82219567,0.00011913,2]
[403198487,1769266239675,-1487.34302787,0.00011913,2]
[403198488,1769266239684,-500.0,0.00011917,2]
[403198489,1769266239693,-150.0,0.00011917,2]
[403198490,1769266239703,-150.0,0.00011917,2]
[403198491,1769266239712,-500.0,0.00011917,2]
[403198492,1769266239721,-500.0,0.00011917,2]
[403198493,1769266239730,-500.0,0.00011917,2]
[403198494,1769266239738,-500.0,0.00011917,2]
[403198495,1769266239747,-315.01687446,0.00011917,2]
[403198496,1769266239757,-150.0,0.00011917,2]
[403198497,1769266239766,-720.0,0.00011935,2]
[403198498,1769266239775,-1933.95,0.00011971,2]
[403198499,1769266239784,-2537.3648725,0.00011984,2]
[403198500,1769266239793,-150.0,0.00012,2]
[403198501,1769266239802,-500.0,0.00012,2]
[403198502,1769266239811,-500.0,0.00012,2]
[403198503,1769266239824,-150.0,0.00012,2]
[403198504,1769266239833,-428.2283012,0.00012019,2]
[403198506,1769266239843,-150.0,0.00012054,2]
[403198507,1769266239851,-150.0,0.00012054,2]
[403198509,1769266239864,-150.0,0.00012054,2]
[403198510,1769266239876,-500.0,0.00012054,2]
[403198511,1769266239885,-500.0,0.00012054,2]
[403198512,1769266239894,-500.0,0.00012054,2]
[403198513,1769266239903,-500.0,0.00012054,2]
[403198514,1769266239912,-1901.0,0.000121,2]
[403198516,1769266239923,-150.0,0.00012137,2]
[403198518,1769266239932,-500.0,0.00012137,2]
[403198520,1769266239942,-500.0,0.00012137,2]
[403198522,1769266239951,-150.0,0.00012137,2]
[403198524,1769266239961,-533.88981491,0.00012161,2]
[403198526,1769266239970,-500.0,0.00012161,2]
[403198528,1769266239983,-150.0,0.00012191,2]
[403198529,1769266239991,-231.517554,0.00012191,2]
[403198531,1769266240001,-500.0,0.00012191,2]
[403198533,1769266240010,-500.0,0.00012191,2]
[403198535,1769266240022,-500.0,0.00012191,2]
[403198538,1769266240031,-2674.60743027,0.00012221,2]
[403198540,1769266240040,-150.0,0.00012274,2]
[403198541,1769266240051,-500.0,0.00012274,2]
[403198544,1769266240062,-500.0,0.00012274,2]
[403198546,1769266240072,-3343.1752909,0.00012326,2]
[403198548,1769266240082,-250.0,0.00012328,2]
[403198550,1769266240092,-500.0,0.00012328,2]
[403198552,1769266240100,-500.0,0.00012328,2]
[403198554,1769266240109,-500.0,0.00012328,2]
[403198555,1769266240119,-1895.14,0.00012329,2]
[403198558,1769266240129,-1579.28,0.00012329,2]
[403198559,1769266240139,-1316.07,0.00012329,2]
[403198561,1769266240148,-1096.72,0.00012329,2]
[403198563,1769266240158,-913.94,0.00012329,2]
[403198565,1769266240168,-761.61,0.00012329,2]
[403198567,1769266240177,-634.68,0.00012329,2]
[403198569,1769266240186,-528.9,0.00012329,2]
[403198572,1769266240195,-440.75,0.00012329,2]
[403198573,1769266240204,-367.29,0.00012329,2]
[403198575,1769266240214,-306.07,0.00012329,2]
[403198577,1769266240224,-255.06,0.00012329,2]
[403198579,1769266240234,-212.55,0.00012329,2]
[403198582,1769266240243,-177.13,0.00012329,2]
[403198584,1769266240252,-767.45836422,0.00012345,2]
[403198586,1769266240261,-275.32157646,0.00012376,2]
[403198587,1769266240272,-2229.46342829,0.00012382,2]
[403198589,1769266240281,-213.75099845,0.00012411,2]
[403198591,1769266240291,-450.0,0.00012411,2]
[403198592,1769266240307,-359.14030444,0.00012411,2]
[403198593,1769266240317,-500.0,0.00012435,2]
[403198594,1769266240326,-385.50322446,0.00012438,2]
[403198595,1769266240335,-500.0,0.00012465,2]
[403198596,1769266240344,-500.0,0.00012465,2]
[403198597,1769266240353,-584.0,0.00012493,2]
[403198598,1769266240362,-1368.0,0.00012587,2]
[403198599,1769266240371,-2149.0,0.00012587,2]
[403198600,1769266240380,-665.629,0.00012587,2]
[403198601,1769266240389,-500.0,0.00012602,2]
[403198602,1769266240398,-500.0,0.00012602,2]
[403198603,1769266240407,-587.0,0.00012609,2]
[403198604,1769266240416,-533.98794882,0.00012644,2]
[403198605,1769266240425,-533.98794882,0.00012644,2]
[403198606,1769266240434,-553.64373807,0.00012709,2]
[403198607,1769266240443,-500.0,0.00012709,2]
[403198608,1769266240452,-500.0,0.00012739,2]
[403198609,1769266240461,-500.0,0.00012739,2]
[403198610,1769266240471,-610.3372626,0.00012767,2]
[403198611,1769266240480,-151.0,0.00012768,2]
[403198612,1769266240489,-151.0,0.00012768,2]
[403198613,1769266240498,-151.0,0.00012768,2]
[403198614,1769266240507,-152.0,0.00012768,2]
[403198615,1769266240516,-151.0,0.00012768,2]
[403198616,1769266240525,-152.0,0.00012768,2]
[403198617,1769266240534,-151.0,0.00012768,2]
[403198618,1769266240543,-152.0,0.00012768,2]
[403198619,1769266240552,-151.0,0.00012768,2]
[403198620,1769266240561,-152.0,0.00012768,2]
[403198621,1769266240570,-151.0,0.00012768,2]
[403198623,1769266240579,-152.0,0.00012768,2]
[403198625,1769266240589,-240.0,0.00012768,2]
[403198627,1769266240598,-151.0,0.00012768,2]
[403198629,1769266240606,-292.0,0.00012768,2]
[403198631,1769266240615,-2320.74,0.00012769,2]
[403198633,1769266240624,-2773.56790519,0.00012769,2]
[403198635,1769266240633,-500.0,0.00012876,2]
[403198637,1769266240642,-500.0,0.00012876,2]
[403198639,1769266240651,-500.0,0.00012983,2]
[403198641,1769266240660,-270.95332067,0.00013013,2]
[403198643,1769266240669,-500.0,0.00013013,2]
[403198645,1769266240678,-864.0,0.00013128,2]
[403198647,1769266240687,-500.0,0.0001315,2]
[403198649,1769266240696,-500.0,0.00013257,2]
[403198651,1769266240705,-574.12855637,0.00013257,2]
[403198653,1769266240714,-526.40517274,0.00013273,2]
[403198655,1769266240723,-500.0,0.00013273,2]
[403198657,1769266240733,-502.45748161,0.00013273,2]
[403198659,1769266240742,-351.17401254,0.00013273,2]
[403198661,1769266240751,-500.0,0.00013273,2]
[403198663,1769266240760,-391.51144791,0.00013273,2]
[403198665,1769266240769,-500.0,0.00013273,2]
[403198668,1769266240778,-502.30753601,0.00013273,2]
[403198670,1769266240787,-158.11625829,0.00013273,2]
[403198672,1769266240796,-500.0,0.00013273,2]
[403198674,1769266240806,-500.0,0.00013273,2]
[403198675,1769266240815,-500.0,0.00013273,2]
[403198678,1769266240824,-505.9050703,0.00013273,2]
[403198680,1769266240834,-500.0,0.00013273,2]
[403198682,1769266240844,-500.0,0.00013273,2]
[403198684,1769266240853,-500.83674418,0.00013273,2]
[403198686,1769266240862,-500.0,0.00013273,2]
[403198688,1769266240871,-500.0,0.00013273,2]
[403198690,1769266240880,-500.0,0.00013273,2]
[403198692,1769266240890,-500.0,0.00013273,2]
[403198694,1769266240899,-602.28532512,0.00013273,2]
[403198696,1769266240908,-454.44780266,0.00013273,2]
[403198698,1769266240917,-507.01248361,0.00013273,2]
[403198700,1769266240927,-500.0,0.00013273,2]
[403198702,1769266240936,-501.3033977,0.00013273,2]
[403198704,1769266240945,-500.0,0.00013273,2]
[403198706,1769266240954,-500.0,0.00013273,2]
[403198708,1769266240963,-500.0,0.00013273,2]
[403198710,1769266240972,-483.24269527,0.00013287,2]
[403198711,1769266240980,-2876.18991768,0.00013317,2]
[403198713,1769266240990,-153.5548493,0.00013397,2]
[403198716,1769266241001,-310.3410544,0.00013425,2]
[403198718,1769266241012,-2149.5746998,0.000135,2]
[403198719,1769266241022,-150.298,0.00013512,2]
[403198721,1769266241031,-150.7,0.00013512,2]
[403198723,1769266241040,-218.401,0.00013512,2]
[403198726,1769266241049,-150.08,0.00013512,2]
[403198727,1769266241058,-500.0,0.00013531,2]
[403198729,1769266241067,-5001.99100161,0.0001354,2]
[403198732,1769266241077,-2707.53,0.00013567,2]
[403198733,1769266241086,-11112.12296124,0.00013598,2]
[403198735,1769266241095,-8977.81346644,0.000136,2]
[403198738,1769266241104,-250.41858677,0.00013644,2]
[403198740,1769266241113,-300.0,0.00013673,2]
[403198742,1769266241123,-2343.84076675,0.0001369,2]
[403198744,1769266241132,-10241.113678,0.0001369,2]
[403198745,1769266241141,-2000.0,0.00013698,2]
[403198748,1769266241151,-840.84366544,0.00013698,2]
[403198750,1769266241160,-173.326474,0.00013698,2]
[403198752,1769266241169,-154.754427,0.00013698,2]
[403198753,1769266241178,-500.0,0.00013698,2]
[403198756,1769266241190,-500.17399976,0.00013698,2]
[403198758,1769266241200,-500.0,0.00013698,2]
[403198760,1769266241210,-500.23464073,0.00013698,2]
[403198762,1769266241219,-500.0,0.00013698,2]
[403198764,1769266241228,-500.0,0.00013698,2]
[403198765,1769266241238,-500.0,0.00013698,2]
[403198768,1769266241250,-500.0,0.00013698,2]
[403198769,1769266241260,-500.0,0.00013698,2]
[403198771,1769266241270,-500.0,0.00013698,2]
[403198774,1769266241280,-500.0,0.00013698,2]
[403198776,1769266241289,-532.46264446,0.00013698,2]
[403198777,1769266241298,-500.0,0.00013698,2]
[403198779,1769266241307,-500.0,0.00013698,2]
[403198782,1769266241318,-502.12416041,0.00013698,2]
[403198784,1769266241330,-506.78248694,0.00013698,2]
[403198785,1769266241340,-500.0,0.00013698,2]
[403198788,1769266241350,-519.03521222,0.00013698,2]
[403198790,1769266241360,-500.0,0.00013698,2]
[403198791,1769266241370,-500.0,0.00013698,2]
[403198794,1769266241381,-500.0,0.00013698,2]
[403198796,1769266241390,-500.0,0.00013698,2]